bitfinex/quotes_BTCUSD_20230114
["timestamp","ask_amount","ask_price","bid_price","bid_amount"]
[1673664434454,0.15431324,20917.0,20911.0,1.865038]
[1673664434700,0.15431324,20917.0,20912.0,0.39072595]
[1673664434948,0.15431324,20917.0,20913.0,1.43395395]
[1673664435201,0.17685373,20916.0,20914.0,0.19072595]
[1673664435444,0.17685373,20916.0,20915.0,0.09630775]
[1673664436185,0.0002,20918.0,20915.0,0.2870337]
[1673664436443,0.0002,20918.0,20916.0,0.19072595]
[1673664436691,0.0002,20918.0,20917.0,0.621504]
[1673664436936,0.0002,20918.0,20917.0,0.7491011]
[1673664437183,0.0002,20918.0,20917.0,0.9491011]
[1673664437431,0.0002,20918.0,20917.0,1.12381224]
[1673664438183,0.17443863,20921.0,20917.0,1.12381224]
[1673664438386,0.00559585,20923.0,20917.0,0.98694109]
[1673664438387,0.18607358,20919.0,20917.0,0.98694109]
[1673664438695,0.15423756,20922.0,20917.0,0.81222995]
[1673664438937,0.15423756,20922.0,20918.0,0.19072595]
[1673664439179,0.15423756,20922.0,20919.0,1.52767959]
[1673664439461,0.15423756,20922.0,20919.0,1.71840554]
[1673664439684,0.15423756,20922.0,20919.0,1.52767959]
[1673664439960,0.00576585,20923.0,20919.0,1.52767959]
[1673664440213,0.00576585,20923.0,20920.0,0.37768305]
[1673664440469,0.00576585,20923.0,20921.0,2.17898221]
[1673664440964,0.00576585,20923.0,20921.0,1.98825626]
[1673664441230,0.00576585,20923.0,20922.0,0.2]
[1673664441471,0.00576585,20923.0,20922.0,0.821355]
[1673664441714,0.20057427,20923.0,20922.0,0.72115859]
[1673664442198,0.00559585,20923.0,20922.0,0.72115859]
[1673664442683,0.00559585,20923.0,20922.0,0.92115859]
[1673664442924,0.00559585,20923.0,20922.0,1.10731771]
[1673664443925,0.00559585,20923.0,20922.0,1.09155617]
[1673664444171,0.00559585,20923.0,20922.0,0.92115859]
[1673664444683,0.00059585,20923.0,20922.0,0.92115859]
[1673664444939,0.00532208,20924.0,20923.0,0.2]
[1673664445186,0.00532208,20924.0,20923.0,1.56675126]
[1673664445424,0.16503463,20931.0,20924.0,0.2]
[1673664445676,0.16503463,20931.0,20926.0,1.863699]
[1673664445922,0.00679869,20934.0,20927.0,0.19072595]
[1673664446203,0.19287214,20932.0,20929.0,1.242288]
[1673664446439,0.14920658,20929.0,20928.0,0.81189795]
[1673664446681,0.15444047,20929.0,20928.0,0.621172]
[1673664446943,0.00644816,20930.0,20926.0,0.621233]
[1673664447192,0.14412084,20927.0,20926.0,0.621233]
[1673664447433,0.16703332,20927.0,20926.0,0.621233]
[1673664447681,0.15513523,20930.0,20926.0,0.621233]
[1673664447935,0.19491131,20928.0,20926.0,1.01195895]
[1673664448178,0.00644816,20930.0,20926.0,0.821233]
[1673664448424,0.18956577,20930.0,20927.0,0.34171734]
[1673664448666,0.18809017,20929.0,20927.0,1.24238]
[1673664448918,0.18809017,20929.0,20927.0,0.621202]
[1673664449125,0.18309017,20929.0,20927.0,0.75905451]
[1673664449880,0.18309017,20929.0,20925.0,0.621242]
[1673664450125,0.33177724,20929.0,20925.0,0.80575059]
[1673664450368,0.18309017,20929.0,20927.0,0.16178668]
[1673664451217,0.14813063,20930.0,20927.0,0.78299068]
[1673664451451,0.18157778,20929.0,20925.0,0.621242]
[1673664451665,0.33026485,20929.0,20925.0,0.621242]
[1673664452113,0.33026485,20929.0,20924.0,0.77819206]
[1673664452251,0.14868707,20928.0,20924.0,0.77819206]
[1673664452698,0.14868707,20928.0,20920.0,0.79671052]
[1673664452699,0.14868707,20927.0,20920.0,0.79671052]
[1673664452942,0.14868707,20926.0,20921.0,0.1702632]
[1673664453177,0.14868707,20925.0,20921.0,0.31159162]
[1673664453425,0.14868707,20925.0,20921.0,0.14132842]
[1673664453426,0.19243886,20924.0,20921.0,0.14132842]
[1673664453665,0.34112593,20924.0,20921.0,0.14132842]
[1673664453904,0.34112593,20924.0,20920.0,0.00019]
[1673664453905,0.14868707,20924.0,20920.0,0.00019]
[1673664454368,0.14868707,20923.0,20920.0,0.00019]
[1673664454619,0.77001407,20923.0,20917.0,0.78382496]
[1673664454862,0.14868707,20922.0,20917.0,0.78382496]
[1673664455122,0.14868707,20921.0,20915.0,0.52689696]
[1673664455350,1.07589726,20923.0,20916.0,0.621516]
[1673664455351,0.14868707,20920.0,20916.0,0.621516]
[1673664455591,0.46039238,20922.0,20915.0,0.52689696]
[1673664455592,0.14868707,20919.0,20915.0,0.52689696]
[1673664456124,0.3458748,20918.0,20916.0,0.07894191]
[1673664456351,0.3458748,20918.0,20914.0,0.07086493]
[1673664456592,0.14868707,20917.0,20914.0,0.20227532]
[1673664457351,0.621518,20917.0,20913.0,0.07836059]
[1673664457590,0.621518,20917.0,20914.0,0.07556672]
[1673664457591,0.77020507,20917.0,20914.0,0.07556672]
[1673664457819,0.19200339,20918.0,20916.0,0.05645862]
[1673664458055,0.19200339,20918.0,20916.0,0.08117708]
[1673664458287,0.19200339,20918.0,20916.0,0.05645862]
[1673664458759,0.19200339,20918.0,20914.0,0.09075563]
[1673664458993,0.34069046,20918.0,20914.0,0.71234763]
[1673664459467,0.34069046,20918.0,20914.0,0.09075563]
[1673664460654,0.96216546,20918.0,20914.0,0.09075563]
[1673664461431,0.621475,20918.0,20912.0,0.621648]
[1673664461656,0.31724189,20917.0,20913.0,0.07138843]
[1673664462569,0.93874689,20917.0,20913.0,0.07138843]
[1673664463025,0.79005982,20917.0,20913.0,0.07138843]
[1673664463248,0.16855482,20917.0,20913.0,0.26211438]
[1673664463499,0.16855482,20917.0,20914.0,0.19072595]
[1673664463775,0.16855482,20917.0,20914.0,0.81231495]
[1673664464011,0.16855482,20917.0,20915.0,0.26086119]
[1673664464234,0.19489975,20918.0,20915.0,0.88242419]
[1673664465628,0.16249954,20919.0,20915.0,0.88242419]
[1673664465865,0.16249954,20919.0,20915.0,1.07315014]
[1673664466087,0.16249954,20919.0,20916.0,0.05337261]
[1673664466349,0.16249954,20919.0,20916.0,0.67490361]
[1673664466587,0.16249954,20919.0,20917.0,0.10020911]
[1673664466820,0.0002,20920.0,20917.0,0.72171111]
[1673664467049,0.0002,20920.0,20918.0,0.19072595]
[1673664467281,0.0002,20920.0,20919.0,1.242888]
[1673664467507,0.17479304,20920.0,20919.0,0.621444]
[1673664467752,0.17479304,20920.0,20918.0,0.2]
[1673664468215,0.0002,20920.0,20918.0,0.821467]
[1673664468443,0.14836922,20923.0,20919.0,0.06517078]
[1673664468680,0.14836922,20923.0,20920.0,0.81213395]
[1673664468891,0.00704736,20924.0,20920.0,0.81213395]
[1673664469143,0.15920557,20924.0,20921.0,0.07564683]
[1673664469360,0.00704736,20924.0,20922.0,0.08877808]
[1673664470338,0.00704736,20924.0,20922.0,0.71013108]
[1673664470577,0.00704736,20924.0,20923.0,0.2]
[1673664470796,0.00704736,20924.0,20923.0,0.821325]
[1673664471543,0.00704736,20924.0,20923.0,0.621325]
[1673664471756,0.00704736,20924.0,20923.0,0.77259056]
[1673664472223,0.00704736,20924.0,20923.0,0.91430248]
[1673664472485,0.00704736,20924.0,20923.0,1.04570497]
[1673664472731,0.00704736,20924.0,20923.0,1.34436155]
[1673664473218,0.00704736,20924.0,20923.0,1.22070497]
[1673664473463,0.00704736,20924.0,20923.0,1.09675021]
[1673664473690,0.00704736,20924.0,20923.0,0.89675021]
[1673664473922,0.00704736,20924.0,20923.0,0.75503829]
[1673664474160,0.19156013,20924.0,20922.0,0.23049]
[1673664474401,0.17904384,20923.0,20922.0,0.08877808]
[1673664475327,0.17904384,20923.0,20921.0,0.69888945]
[1673664475564,0.29400816,20923.0,20919.0,0.76314292]
[1673664475808,0.29400816,20923.0,20919.0,0.14171192]
[1673664476486,0.14868707,20923.0,20919.0,0.14171192]
[1673664476776,0.77001507,20923.0,20918.0,0.14171192]
[1673664476998,0.14868707,20922.0,20917.0,0.35461398]
[1673664477221,0.77007307,20921.0,20917.0,0.14190192]
[1673664477451,0.14868707,20921.0,20917.0,0.3921355]
[1673664477672,0.14868707,20921.0,20917.0,0.60484756]
[1673664477902,0.14868707,20921.0,20917.0,0.3921355]
[1673664478158,0.14868707,20921.0,20916.0,0.4459476]
[1673664478372,0.14868707,20921.0,20916.0,0.63667355]
[1673664479339,0.14868707,20921.0,20917.0,0.09706305]
[1673664479581,0.1445025,20920.0,20917.0,0.23877497]
[1673664479811,0.621388,20921.0,20916.0,0.14171192]
[1673664480057,0.77007507,20921.0,20916.0,0.19072595]
[1673664480296,0.16499625,20920.0,20916.0,0.19072595]
[1673664480541,0.31368332,20920.0,20915.0,0.22814466]
[1673664480778,0.14868707,20920.0,20915.0,0.22814466]
[1673664481024,0.14868707,20919.0,20913.0,0.37124038]
[1673664481269,0.14868707,20918.0,20913.0,0.15852832]
[1673664481496,0.14868707,20917.0,20913.0,0.11168982]
[1673664482228,0.62588876,20916.0,20913.0,0.0168164]
[1673664482471,2.72674669,20915.0,20913.0,0.0168164]
[1673664482703,0.413203,20914.0,20913.0,0.0168164]
[1673664483190,0.87035729,20914.0,20913.0,0.0168164]
[1673664484137,0.87035729,20914.0,20908.0,0.1576627]
[1673664484138,2.11783905,20914.0,20908.0,0.01595078]
[1673664484389,0.06412,20911.0,20908.0,0.01595078]
[1673664484625,1.60531407,20910.0,20908.0,0.01595078]
[1673664484861,0.520736,20909.0,20908.0,0.01576078]
[1673664485093,0.51521415,20909.0,20908.0,0.07179078]
[1673664485336,0.621861,20912.0,20908.0,0.0896332]
[1673664485589,0.18418369,20909.0,20908.0,0.22432915]
[1673664485823,0.18418369,20909.0,20908.0,0.0336032]
[1673664486061,0.18418369,20909.0,20908.0,0.01576078]
[1673664487736,0.45706609,20913.0,20908.0,0.26251673]
[1673664487980,1.703241,20916.0,20909.0,0.19072595]
[1673664488241,0.16867687,20914.0,20910.0,0.81243495]
[1673664488481,0.14866277,20913.0,20910.0,0.81243495]
[1673664488723,0.17109154,20911.0,20909.0,0.621733]
[1673664489457,0.18174015,20912.0,20910.0,0.2]
[1673664489695,0.00017,20915.0,20910.0,0.19072595]
[1673664489935,0.14819743,20914.0,20911.0,0.0812438]
[1673664490179,0.16386453,20912.0,20910.0,0.08865066]
[1673664490649,1.22797774,20915.0,20910.0,0.08865066]
[1673664490900,0.18556347,20914.0,20911.0,0.28324684]
[1673664491142,0.621539,20916.0,20912.0,0.08290572]
[1673664491143,0.14084122,20916.0,20912.0,0.08290572]
[1673664491404,0.14084122,20916.0,20913.0,0.19072595]
[1673664491636,0.14084122,20916.0,20914.0,0.02736317]
[1673664491860,0.1545463,20918.0,20914.0,0.21808912]
[1673664492094,1.2084,20920.0,20915.0,0.19072595]
[1673664492324,1.829817,20920.0,20916.0,0.27469346]
[1673664492794,0.320736,20919.0,20914.0,0.02736317]
[1673664493017,0.213203,20918.0,20914.0,0.02736317]
[1673664493249,0.14868707,20918.0,20914.0,0.02736317]
[1673664493488,0.77016407,20918.0,20914.0,0.02736317]
[1673664493721,0.76516407,20918.0,20914.0,0.02736317]
[1673664493956,0.621477,20918.0,20914.0,0.02736317]
[1673664494191,0.621477,20918.0,20914.0,0.19072595]
[1673664494672,0.621477,20918.0,20911.0,0.76336392]
[1673664494896,0.14368707,20917.0,20911.0,0.90941111]
[1673664495133,0.14368707,20916.0,20912.0,0.10006809]
[1673664495353,0.17788639,20915.0,20912.0,0.10006809]
[1673664495583,0.17788639,20915.0,20912.0,0.72171709]
[1673664495852,0.621449,20919.0,20912.0,0.91244304]
[1673664496096,0.28992267,20920.0,20913.0,0.69365803]
[1673664496345,0.1263,20920.0,20916.0,0.2]
[1673664496576,0.00017,20918.0,20917.0,0.8876207]
[1673664496804,0.00017,20918.0,20917.0,0.69689475]
[1673664497487,0.00017,20918.0,20917.0,0.83860667]
[1673664497950,0.00017,20918.0,20917.0,0.77195808]
[1673664498178,0.1263,20920.0,20917.0,0.69689475]
[1673664498420,0.1263,20920.0,20918.0,0.1485081]
[1673664498661,0.1263,20920.0,20918.0,0.7699761]
[1673664499390,0.1263,20920.0,20918.0,0.91168802]
[1673664500335,0.1263,20920.0,20918.0,1.32440008]
[1673664501028,0.1263,20920.0,20919.0,0.14171192]
[1673664501274,0.1263,20920.0,20919.0,1.65999667]
[1673664501751,0.1263,20920.0,20919.0,1.87270873]
[1673664501984,0.1263,20920.0,20919.0,2.01339547]
[1673664502989,0.1263,20920.0,20919.0,2.15480986]
[1673664503232,0.1263,20920.0,20919.0,1.8724112]
[1673664503460,0.1263,20920.0,20919.0,2.47440897]
[1673664503714,0.1263,20920.0,20919.0,2.50923994]
[1673664504170,0.00644816,20927.0,20920.0,0.2]
[1673664504406,0.00644816,20927.0,20922.0,2.22016155]
[1673664504641,0.00644816,20927.0,20923.0,0.19072595]
[1673664504853,0.00644816,20927.0,20924.0,2.05459595]
[1673664505339,0.00644816,20927.0,20925.0,0.2]
[1673664505574,0.00644816,20927.0,20926.0,1.31786875]
[1673664507486,0.00644816,20927.0,20926.0,1.51786875]
[1673664508185,0.00494368,20931.0,20927.0,0.2]
[1673664508422,0.00494368,20931.0,20928.0,1.32232926]
[1673664508648,0.18211347,20930.0,20929.0,0.1485081]
[1673664509107,0.18211347,20930.0,20928.0,0.07998726]
[1673664510028,0.19162958,20931.0,20928.0,0.07998726]
[1673664510289,0.01865374,20931.0,20928.0,0.81190295]
[1673664510517,0.00494368,20931.0,20928.0,0.81190295]
[1673664511008,0.00494368,20931.0,20928.0,0.621177]
[1673664511259,0.00494368,20931.0,20929.0,0.2]
[1673664511496,0.00494368,20931.0,20930.0,1.863354]
[1673664511987,0.00494368,20931.0,20929.0,0.0821811]
[1673664512226,0.00494368,20931.0,20929.0,0.7033241]
[1673664512459,0.00494368,20931.0,20930.0,0.33244761]
[1673664512710,0.00494368,20931.0,20930.0,0.13244761]
[1673664512945,0.17810462,20931.0,20930.0,0.13244761]
[1673664513198,0.00494368,20931.0,20930.0,0.13244761]
[1673664513666,0.00494368,20931.0,20930.0,0.23023124]
[1673664514846,0.25801075,20931.0,20926.0,0.00019]
[1673664515114,0.14368707,20930.0,20926.0,0.71956927]
[1673664515362,0.17511005,20931.0,20926.0,0.71956927]
[1673664515363,0.14368707,20929.0,20926.0,0.71956927]
[1673664515594,0.14368707,20929.0,20927.0,0.07122622]
[1673664515837,0.17511005,20931.0,20928.0,0.06924432]
[1673664516323,0.14190398,20930.0,20928.0,0.16307643]
[1673664518000,0.76480507,20930.0,20924.0,0.00019]
[1673664518237,0.14368707,20929.0,20925.0,0.07034254]
[1673664518925,0.18723111,20928.0,20925.0,0.07034254]
[1673664519172,0.18723111,20928.0,20926.0,0.06916365]
[1673664520328,0.00494368,20931.0,20926.0,0.06916365]
[1673664520548,0.15884118,20930.0,20927.0,0.19072595]
[1673664520774,0.00494368,20931.0,20928.0,0.08811236]
[1673664521017,0.00494368,20931.0,20928.0,0.47883831]
[1673664521518,0.00494368,20931.0,20929.0,0.08389691]
[1673664521789,0.00494368,20931.0,20929.0,0.70503091]
[1673664522255,0.00494368,20931.0,20929.0,0.621134]
[1673664522488,0.00494368,20931.0,20930.0,0.06662884]
[1673664522772,0.00494368,20931.0,20930.0,0.68774684]
[1673664522964,0.00494368,20931.0,20930.0,1.07847279]
[1673664523201,0.00494368,20931.0,20930.0,0.88774684]
[1673664523425,0.15233755,20937.0,20930.0,0.88774684]
[1673664523426,0.00084449,20937.0,20931.0,0.2]
[1673664523649,0.19616107,20937.0,20932.0,1.5019616]
[1673664523909,0.19616107,20937.0,20933.0,0.19072595]
[1673664524141,0.00084449,20937.0,20934.0,0.19072595]
[1673664524380,0.00084449,20937.0,20935.0,0.08811236]
[1673664526541,0.14978464,20937.0,20935.0,0.08811236]
[1673664527992,0.00084449,20937.0,20935.0,0.16523776]
[1673664528485,0.00084449,20937.0,20936.0,0.09239125]
[1673664528710,0.00084449,20937.0,20936.0,0.11815415]
[1673664530102,0.00084449,20937.0,20936.0,0.0257629]
[1673664531032,0.00084449,20937.0,20936.0,0.11149923]
[1673664531741,0.00084449,20937.0,20936.0,0.73243923]
[1673664531993,0.00084449,20937.0,20936.0,0.8467029]
[1673664532702,0.00084449,20937.0,20936.0,0.94568069]
[1673664532935,0.00084449,20937.0,20936.0,0.98914512]
[1673664533404,0.00084449,20937.0,20936.0,1.20280845]
[1673664533867,0.00084449,20937.0,20936.0,1.34525068]
[1673664534082,0.00084449,20937.0,20936.0,1.2728795]
[1673664534360,0.00084449,20937.0,20936.0,2.15828698]
[1673664534828,0.00084449,20937.0,20936.0,1.80218142]
[1673664535067,0.00084449,20937.0,20936.0,2.68293711]
[1673664535297,0.00084449,20937.0,20936.0,3.09016839]
[1673664535538,0.00084449,20937.0,20936.0,2.66673208]
[1673664536004,0.00655477,20938.0,20937.0,0.2]
[1673664536232,0.00699869,20940.0,20938.0,0.2]
[1673664536479,0.00699869,20940.0,20939.0,2.90529939]
[1673664536730,0.19280238,20949.0,20940.0,0.00699]
[1673664537020,0.15121854,20948.0,20946.0,0.35527686]
[1673664537225,0.00764864,20952.0,20947.0,1.43195195]
[1673664537457,0.16187139,20951.0,20948.0,0.27799382]
[1673664537702,0.16187139,20951.0,20949.0,0.81127395]
[1673664537934,0.14687139,20951.0,20950.0,0.19072595]
[1673664538210,0.00764864,20952.0,20947.0,0.14211074]
[1673664538449,0.18017032,20951.0,20947.0,0.90920024]
[1673664539434,0.00764864,20952.0,20947.0,0.81133795]
[1673664539685,0.31449189,20952.0,20947.0,0.92069393]
[1673664539907,0.19570686,20951.0,20948.0,0.10833012]
[1673664540379,0.14368707,20950.0,20946.0,0.14211074]
[1673664540617,0.14368707,20949.0,20945.0,0.14230074]
[1673664540908,0.2,20947.0,20946.0,0.06396884]
[1673664541138,0.14368707,20949.0,20945.0,0.00019]
[1673664541370,0.620542,20950.0,20946.0,0.0854213]
[1673664541611,1.28011421,20951.0,20946.0,0.27614725]
[1673664541848,1.28011421,20951.0,20948.0,0.03699285]
[1673664542084,0.19671421,20951.0,20948.0,0.95313768]
[1673664542337,0.00764864,20952.0,20948.0,0.95313768]
[1673664542571,0.00764864,20952.0,20949.0,0.08530579]
[1673664542802,0.00764864,20952.0,20949.0,0.27603174]
[1673664543055,0.00764864,20952.0,20950.0,0.0775323]
[1673664543307,0.00764864,20952.0,20949.0,0.62055]
[1673664543546,0.00764864,20952.0,20950.0,0.620517]
[1673664543784,0.00764864,20952.0,20951.0,0.2]
[1673664544029,0.00764864,20952.0,20951.0,0.620495]
[1673664544279,0.00764864,20952.0,20950.0,0.620517]
[1673664544777,0.00764864,20952.0,20951.0,0.2]
[1673664545008,0.16395737,20955.0,20952.0,0.2]
[1673664545009,0.14664895,20955.0,20952.0,0.2]
[1673664545252,0.15339684,20957.0,20953.0,0.20756819]
[1673664545490,1.1993,20958.0,20954.0,0.19072595]
[1673664545733,1.575358,20960.0,20956.0,0.1526]
[1673664545734,1.05981664,20960.0,20956.0,0.1526]
[1673664545980,0.1167588,20960.0,20957.0,0.19072595]
[1673664546206,0.1167588,20960.0,20958.0,0.20979855]
[1673664546471,0.62960447,20962.0,20958.0,0.20979855]
[1673664546472,0.60299152,20962.0,20958.0,0.19072595]
[1673664546727,0.03427027,20962.0,20959.0,0.19072595]
[1673664546956,1.82452594,20963.0,20960.0,0.0190726]
[1673664547236,0.18656429,20963.0,20960.0,0.20979855]
[1673664547480,0.19332123,20964.0,20960.0,0.20979855]
[1673664547953,0.19332123,20964.0,20961.0,0.18260787]
[1673664548180,0.19332123,20964.0,20962.0,0.03924064]
[1673664550636,1.7566109,20968.0,20963.0,0.19072595]
[1673664550637,0.620038,20967.0,20963.0,0.19072595]
[1673664550890,0.1623056,20965.0,20963.0,0.19072595]
[1673664551137,0.46367676,20964.0,20962.0,0.03924064]
[1673664551369,0.213203,20963.0,20961.0,0.00019]
[1673664551612,0.28662783,20964.0,20961.0,0.00019]
[1673664551857,0.14294076,20964.0,20961.0,0.00019]
[1673664552086,0.14368707,20964.0,20961.0,0.07926344]
[1673664552335,0.14368707,20964.0,20961.0,0.00019]
[1673664552336,0.46442307,20963.0,20961.0,0.00019]
[1673664552559,2.07371,20962.0,20961.0,0.00019]
[1673664552808,0.2,20961.0,20952.0,0.16665085]
[1673664553037,1.240558,20959.0,20952.0,0.16665085]
[1673664553265,0.35689007,20958.0,20950.0,0.1516371]
[1673664553609,0.14368707,20957.0,20950.0,0.1516371]
[1673664553793,0.14368707,20956.0,20951.0,0.07721891]
[1673664554063,0.14368707,20955.0,20951.0,0.07721891]
[1673664554520,0.14368707,20955.0,20950.0,0.3516371]
[1673664554521,0.14368707,20955.0,20950.0,0.1516371]
[1673664554772,0.14368707,20955.0,20949.0,0.2]
[1673664554773,0.14368707,20954.0,20948.0,0.77181431]
[1673664555033,0.14368707,20953.0,20948.0,0.15124731]
[1673664555263,0.14368707,20952.0,20948.0,0.15124731]
[1673664555552,0.14368707,20951.0,20948.0,0.15124731]
[1673664555744,0.14368707,20951.0,20948.0,0.00019]
[1673664556016,0.16743253,20950.0,20948.0,0.00019]
[1673664556746,0.16743253,20950.0,20948.0,0.16200968]
[1673664557001,0.16743253,20950.0,20949.0,0.07826217]
[1673664559119,0.16050987,20951.0,20949.0,0.07826217]
[1673664560380,0.00019,20953.0,20950.0,0.19072595]
[1673664560648,0.00019,20953.0,20952.0,0.2]
[1673664560876,0.00019,20953.0,20951.0,0.04085031]
[1673664561373,0.00019,20953.0,20952.0,0.15481913]
[1673664562308,0.00019,20953.0,20952.0,0.19072595]
[1673664562589,0.00019,20953.0,20952.0,0.820465]
[1673664562883,0.0103613,20958.0,20952.0,1.29766669]
[1673664563065,0.0103613,20958.0,20954.0,0.2]
[1673664563327,0.0103613,20958.0,20955.0,0.81109695]
[1673664563656,0.0103613,20958.0,20956.0,0.2]
[1673664564089,0.0103613,20958.0,20957.0,0.16087737]
[1673664564351,0.0103613,20958.0,20957.0,0.2780748]
[1673664565329,0.0103613,20958.0,20954.0,0.18287425]
[1673664565330,0.16016851,20957.0,20954.0,0.18287425]
[1673664565555,0.30385558,20957.0,20954.0,0.18287425]
[1673664566014,0.16016851,20957.0,20954.0,0.18287425]
[1673664566498,0.16016851,20957.0,20955.0,0.12056074]
[1673664566757,0.16016851,20957.0,20956.0,0.03205607]
[1673664567223,0.0103613,20958.0,20956.0,0.03205607]
[1673664567461,0.18328086,20958.0,20956.0,0.03205607]
[1673664567704,0.18320291,20958.0,20956.0,0.03205607]
[1673664569603,0.01028335,20958.0,20956.0,0.17593635]
[1673664569837,0.01028335,20958.0,20957.0,0.27628627]
[1673664570339,0.00954523,20958.0,20957.0,0.27628627]
[1673664571051,0.00954523,20958.0,20957.0,0.07963093]
[1673664571346,0.00954523,20958.0,20957.0,0.23912728]
[1673664572262,0.00954523,20958.0,20957.0,0.69994793]
[1673664572539,0.00954523,20958.0,20957.0,1.11311405]
[1673664572744,0.00954523,20958.0,20957.0,1.20379936]
[1673664572985,0.00954523,20958.0,20957.0,1.25514869]
[1673664573212,0.00954523,20958.0,20957.0,2.35186774]
[1673664573457,0.00954523,20958.0,20957.0,2.13870162]
[1673664573680,0.00954523,20958.0,20957.0,2.35174614]
[1673664573911,0.00954523,20958.0,20957.0,2.52522604]
[1673664574150,0.00954523,20958.0,20957.0,1.22850426]
[1673664574373,0.00954523,20958.0,20957.0,1.01545974]
[1673664574685,0.00954523,20958.0,20957.0,1.08647235]
[1673664574840,0.00954523,20958.0,20957.0,0.46615535]
[1673664575086,0.00954523,20958.0,20957.0,0.60835767]
[1673664575323,0.00954523,20958.0,20957.0,0.46615535]
[1673664575551,0.00954523,20958.0,20957.0,0.75037684]
[1673664575773,0.00954523,20958.0,20957.0,1.70496118]
[1673664576243,0.00954523,20958.0,20957.0,0.60835929]
[1673664576484,0.00954523,20958.0,20957.0,1.70544366]
[1673664576732,0.00954523,20958.0,20957.0,1.49193481]
[1673664576976,0.00954523,20958.0,20957.0,1.53196477]
[1673664577213,0.8295503,20958.0,20957.0,0.14234419]
[1673664577445,1.00659923,20958.0,20956.0,0.35585405]
[1673664577686,0.213203,20957.0,20954.0,0.35585405]
[1673664577919,0.941083,20956.0,20954.0,0.26035783]
[1673664578155,0.76403407,20956.0,20954.0,0.14234419]
[1673664578384,0.620347,20956.0,20953.0,0.35604405]
[1673664578617,0.620347,20956.0,20954.0,0.14234419]
[1673664579069,0.620347,20956.0,20955.0,0.0356044]
[1673664579826,0.620347,20956.0,20954.0,0.14234419]
[1673664580092,0.620347,20956.0,20955.0,0.14234419]
[1673664580334,0.620347,20956.0,20954.0,0.35585405]
[1673664580335,0.17146874,20955.0,20954.0,0.35585405]
[1673664580575,0.17146874,20955.0,20954.0,0.4676662]
[1673664581032,0.17146874,20955.0,20954.0,0.25415634]
[1673664582517,0.17146874,20955.0,20954.0,0.46786625]
[1673664583006,0.17146874,20955.0,20954.0,0.25435639]
[1673664583507,0.17146874,20955.0,20954.0,0.14254424]
[1673664584021,0.620337,20957.0,20954.0,0.28422149]
[1673664584266,0.82110643,20957.0,20956.0,0.14253417]
[1673664584523,0.20076943,20957.0,20956.0,0.35633543]
[1673664585286,0.320736,20957.0,20956.0,0.14253417]
[1673664585520,0.938113,20957.0,20956.0,0.35633543]
[1673664585764,0.62986223,20958.0,20956.0,0.65118011]
[1673664585765,0.00954523,20958.0,20956.0,0.65118011]
[1673664586018,0.00954523,20958.0,20957.0,0.49892162]
[1673664586262,0.00954523,20958.0,20957.0,1.23974006]
[1673664586582,0.00954523,20958.0,20957.0,1.23972857]
[1673664586755,0.00954523,20958.0,20957.0,1.5949656]
[1673664587018,0.00954523,20958.0,20957.0,1.66338645]
[1673664587246,0.00954523,20958.0,20957.0,0.70879291]
[1673664587869,0.00954523,20958.0,20957.0,1.66338633]
[1673664588001,0.00954523,20958.0,20957.0,0.70879291]
[1673664588267,0.00954523,20958.0,20957.0,0.85690065]
[1673664588532,0.00954523,20958.0,20956.0,0.2]
[1673664588533,0.00954523,20958.0,20956.0,0.3563172]
[1673664588784,0.80716011,20958.0,20956.0,0.14252688]
[1673664589516,0.80716011,20958.0,20956.0,0.26706566]
[1673664589775,0.00954523,20958.0,20956.0,0.26706566]
[1673664590029,0.00954523,20958.0,20957.0,0.0957775]
[1673664590637,0.00954523,20958.0,20957.0,0.38087557]
[1673664590765,0.00954523,20958.0,20957.0,0.73615243]
[1673664591012,0.00954523,20958.0,20957.0,0.9356195]
[1673664591256,0.00954523,20958.0,20957.0,0.794131]
[1673664591518,0.00954523,20958.0,20957.0,0.994131]
[1673664592020,0.00954523,20958.0,20957.0,0.43777182]
[1673664592261,0.00954523,20958.0,20957.0,0.23830475]
[1673664592494,0.00954523,20958.0,20957.0,0.0957775]
[1673664593254,0.15501505,20958.0,20957.0,0.0957775]
[1673664593497,0.15501505,20958.0,20955.0,0.35631561]
[1673664593743,0.29870212,20958.0,20955.0,0.14252725]
[1673664594004,0.15501505,20958.0,20954.0,0.53058158]
[1673664594259,0.29870212,20958.0,20954.0,0.53058158]
[1673664594741,0.29870212,20958.0,20954.0,0.17426597]
[1673664595525,0.320729,20957.0,20953.0,0.01647168]
[1673664595764,0.210271,20956.0,20953.0,0.01647168]
[1673664596008,0.210271,20956.0,20951.0,0.35631561]
[1673664596009,1.38438707,20956.0,20951.0,0.14252725]
[1673664596268,0.63937209,20955.0,20952.0,0.23134526]
[1673664596512,0.17495602,20955.0,20952.0,0.23134526]
[1673664596749,0.17495602,20955.0,20952.0,0.43134526]
[1673664597235,0.17495602,20955.0,20952.0,0.23134526]
[1673664597505,0.17495602,20955.0,20953.0,0.09783868]
[1673664597737,0.620353,20956.0,20953.0,0.09783868]
[1673664598226,0.15850902,20957.0,20953.0,0.28856463]
[1673664598477,0.15850902,20957.0,20954.0,0.0845295]
[1673664598723,0.18767536,20955.0,20954.0,0.0845295]
[1673664599255,0.18767536,20955.0,20950.0,0.36625578]
[1673664599256,0.14368707,20955.0,20950.0,0.36625578]
[1673664599501,0.46441607,20954.0,20950.0,0.00994017]
[1673664599745,0.210271,20953.0,20950.0,0.14720804]
[1673664599993,0.14368707,20953.0,20951.0,0.04897353]
[1673664600240,0.620422,20954.0,20951.0,0.03397353]
[1673664601266,0.320729,20953.0,20951.0,0.03397353]
[1673664601511,0.320729,20953.0,20950.0,0.00994017]
[1673664601512,0.35395807,20952.0,20950.0,0.00994017]
[1673664601757,0.320729,20951.0,20950.0,0.00994017]
[1673664602002,0.941224,20951.0,20950.0,0.00994017]
[1673664603041,1.141224,20951.0,20950.0,0.00994017]
[1673664603290,0.941224,20951.0,20950.0,0.00994017]
[1673664604069,0.941224,20951.0,20950.0,0.20066612]
[1673664604310,0.941224,20951.0,20950.0,0.04442146]
[1673664604563,0.76719002,20951.0,20950.0,0.00994017]
[1673664604834,0.941224,20951.0,20950.0,0.00994017]
[1673664607293,1.09087613,20951.0,20950.0,0.00994017]
[1673664607788,1.09087613,20951.0,20950.0,0.06597017]
[1673664608030,1.09087613,20951.0,20950.0,0.00994017]
[1673664608277,1.09087613,20951.0,20950.0,0.02962341]
[1673664609335,0.77014713,20951.0,20950.0,0.02962341]
[1673664609599,1.09087613,20951.0,20950.0,0.02962341]
[1673664610087,0.77014713,20951.0,20950.0,0.02962341]
[1673664610568,0.620448,20953.0,20950.0,0.18039862]
[1673664610569,0.14268949,20953.0,20950.0,0.18039862]
[1673664610789,0.180251,20952.0,20950.0,0.35144133]
[1673664611080,0.180251,20952.0,20951.0,0.03514413]